bitfinex-derivatives/quotes_ETHF0:USTF0_20241017
["timestamp","ask_amount","ask_price","bid_price","bid_amount"]
[1729154463532,3.7295886,2621.2,2621.1,1.44241]
[1729154464822,1.24,2621.2,2621.1,1.44241]
[1729154465225,1.7853,2621.2,2621.1,0.91191]
[1729154465418,1.7853,2621.2,2620.8,3.2078]
[1729154465718,1.24,2620.9,2620.8,0.91435]
[1729154466533,3.72954726,2620.9,2620.8,0.91435]
[1729154468228,1.24,2620.9,2620.8,0.91435]
[1729154468734,1.7893,2620.9,2620.8,0.91435]
[1729154468925,2.17094,2620.9,2620.8,0.5327]
[1729154469128,2.17094,2620.9,2620.7,0.38166]
[1729154469129,0.38165,2620.8,2620.7,0.38166]
[1729154469324,1.7659,2620.8,2620.7,0.38166]
[1729154469624,1.7659,2620.8,2620.6,1.43427]
[1729154469835,1.24,2620.7,2620.6,1.43427]
[1729154470233,3.72869489,2620.7,2620.6,1.0526]
[1729154470528,1.24,2620.7,2620.6,1.0526]
[1729154470725,1.24,2620.7,2620.5,0.38169]
[1729154470939,1.24,2620.6,2620.5,0.38169]
[1729154471131,1.62168,2620.6,2620.5,0.38169]
[1729154471336,1.24,2620.6,2620.4,0.5606]
[1729154471528,4.28246581,2620.5,2620.4,0.94231]
[1729154472035,1.7951,2620.5,2620.4,0.94231]
[1729154473929,1.7951,2620.5,2620.4,2.18231]
[1729154474124,3.72736581,2620.7,2620.4,1.8006]
[1729154474334,4.26736581,2620.7,2620.4,1.8006]
[1729154474642,2.48736581,2620.7,2620.6,1.62168]
[1729154474931,2.48736581,2620.9,2620.6,1.24]
[1729154475135,4.26736581,2621.0,2620.7,2.3497]
[1729154475324,4.26736581,2621.0,2620.9,0.38164]
[1729154476530,1.78,2621.0,2620.9,0.38164]
[1729154476734,4.26736581,2621.0,2620.9,0.38164]
[1729154477134,1.78,2621.0,2620.9,0.38164]
[1729154477637,4.26736581,2621.0,2620.9,0.38164]
[1729154479337,4.64898581,2621.0,2620.9,0.38164]
[1729154479736,4.26736581,2621.0,2620.9,0.38164]
[1729154485636,1.78,2621.0,2620.9,0.38164]
[1729154485944,4.26736581,2621.0,2620.9,0.38164]
[1729154488533,1.78,2621.0,2620.9,0.38164]
[1729154489746,4.26736581,2621.0,2620.9,0.38164]
[1729154490243,1.78,2621.0,2620.9,0.38164]
[1729154490749,4.26736581,2621.0,2620.9,0.38164]
[1729154491434,1.78,2621.0,2620.9,0.38164]
[1729154491750,1.24,2621.0,2620.9,0.38164]
[1729154492446,3.72736581,2621.0,2620.9,0.38164]
[1729154492946,1.24,2621.0,2620.9,0.38164]
[1729154493338,3.72736581,2621.0,2620.9,0.38164]
[1729154497337,1.24,2621.0,2620.9,0.38164]
[1729154497742,3.72738209,2621.0,2620.9,0.38164]
[1729154498242,3.72736546,2621.0,2620.9,0.38164]
[1729154498438,1.24,2621.0,2620.9,0.38164]
[1729154499846,0.5481,2621.1,2620.9,1.24]
[1729154500039,2.4880993,2621.2,2621.0,5.0552]
[1729154500346,1.7916,2621.4,2621.2,0.3816]
[1729154500347,2.4880993,2621.3,2621.2,0.3816]
[1729154500545,2.4880993,2621.3,2621.2,1.6216]
[1729154500752,4.64602787,2621.6,2621.2,8.263]
[1729154500753,2.4880993,2621.4,2621.2,8.263]
[1729154500943,2.4880993,2621.5,2621.4,0.38157]
[1729154501243,3.7280993,2621.5,2621.4,0.38157]
[1729154503640,1.24,2621.5,2621.4,0.38157]
[1729154504041,3.7280993,2621.5,2621.4,0.38157]
[1729154504240,1.24,2621.5,2621.4,0.38157]
[1729154505047,3.7280993,2621.5,2621.4,0.38157]
[1729154505247,1.24,2621.5,2621.4,0.38157]
[1729154511161,4.1389993,2621.6,2621.5,0.38155]
[1729154511452,5.3789993,2621.6,2621.5,0.38155]
[1729154516155,5.7605393,2621.6,2621.5,0.38155]
[1729154516353,8.9683393,2621.6,2621.5,0.38155]
[1729154516554,5.7605393,2621.6,2621.5,0.38155]
[1729154516756,5.3789993,2621.6,2621.5,0.38155]
[1729154516950,5.7605393,2621.6,2621.5,0.38155]
[1729154517156,5.3789993,2621.6,2621.5,0.38155]
[1729154518758,2.8909,2621.6,2621.5,0.38155]
[1729154520660,1.6509,2621.6,2621.5,1.62155]
[1729154521060,1.6509,2621.6,2621.5,0.38155]
[1729154521563,1.6509,2621.6,2621.5,1.45075]
[1729154523360,3.72501465,2621.7,2621.6,0.38154]
[1729154528270,1.24,2621.7,2621.6,0.38154]
[1729154528965,3.72501465,2621.7,2621.6,0.38154]
[1729154533157,1.24,2621.7,2621.6,0.38154]
[1729154536375,4.23512787,2621.7,2621.6,0.38154]
[1729154538381,4.23512787,2621.7,2621.5,0.38154]
[1729154538584,1.24,2621.6,2621.3,4.16175]
[1729154538888,1.0718,2621.5,2621.3,3.2078]
[1729154539183,1.6021,2621.5,2621.4,0.38157]
[1729154542684,1.24,2621.6,2621.5,0.93495]
[1729154544580,1.24,2621.6,2621.5,0.38155]
[1729154544987,4.23512787,2621.6,2621.5,0.38155]
[1729154545184,1.8948852,2621.6,2621.5,0.38155]
[1729154545497,4.89001307,2621.6,2621.5,0.38155]
[1729154545684,1.8948852,2621.6,2621.5,0.38155]
[1729154547093,4.8839513,2621.6,2621.5,0.38155]
[1729154550682,1.8948852,2621.6,2621.5,0.38155]
[1729154552892,2.2764252,2621.6,2621.5,0.38155]
[1729154553095,5.39270213,2621.6,2621.5,0.38155]
[1729154557805,5.77424213,2621.6,2621.5,0.38155]
[1729154558408,5.39270213,2621.6,2621.5,0.38155]
[1729154560708,5.77424213,2621.6,2621.5,0.38155]
[1729154561305,5.39270213,2621.6,2621.5,0.38155]
[1729154563506,5.77424213,2621.6,2621.5,0.38155]
[1729154563703,9.20710213,2621.6,2621.1,0.5475]
[1729154564007,3.87939693,2621.4,2621.3,0.38157]
[1729154564205,4.53428213,2621.4,2621.3,0.38157]
[1729154564406,8.91178213,2621.4,2621.3,0.38157]
[1729154565802,10.15178213,2621.4,2621.3,0.38157]
[1729154566614,6.6539652,2621.4,2621.3,0.38157]
[1729154566807,6.6539652,2621.4,2621.1,0.5475]
[1729154566808,6.2723852,2621.4,2621.1,0.5475]
[1729154567011,4.02160908,2621.3,2621.2,0.38158]
[1729154567403,3.64002908,2621.3,2621.2,0.38158]
[1729154567599,4.88002908,2621.3,2621.2,0.38158]
[1729154567804,4.88002908,2621.3,2621.2,0.95368]
[1729154567805,1.8948852,2621.3,2621.2,0.95368]
[1729154568005,0.6548852,2621.3,2621.2,0.95368]
[1729154568206,0.6548852,2621.3,2621.2,1.47188]
[1729154568404,2.4571852,2621.4,2621.3,0.38158]
[1729154568809,1.8023,2621.4,2621.3,0.38158]
[1729154569007,5.6175,2621.4,2621.3,0.38158]
[1729154570312,8.60264388,2621.4,2621.2,0.5721]
[1729154570609,5.2607278,2621.3,2621.2,0.5721]
[1729154570813,5.2607278,2621.3,2621.1,0.5475]
[1729154571016,3.36672388,2621.3,2621.2,0.3816]
[1729154571215,4.02073244,2621.3,2621.2,0.3816]
[1729154573003,4.60672388,2621.3,2621.2,0.3816]
[1729154573201,1.24,2621.3,2621.2,0.3816]
[1729154573608,1.62158,2621.3,2621.2,0.3816]
[1729154574103,1.62158,2621.3,2621.1,0.9291]
[1729154574312,1.24,2621.2,2621.1,0.9291]
[1729154574907,1.24,2621.2,2621.1,0.5475]
[1729154575111,1.24,2621.2,2621.1,0.92911]
[1729154577508,1.24,2621.2,2621.1,1.47741]
[1729154579713,1.24,2621.3,2621.2,0.3816]
[1729154581517,1.62158,2621.3,2621.2,0.3816]
[1729154582418,1.24,2621.3,2621.2,0.3816]
[1729154582726,1.62158,2621.3,2621.2,0.3816]
[1729154583222,1.24,2621.3,2621.2,0.3816]
[1729154587717,1.89376793,2621.3,2621.2,0.3816]
[1729154588025,5.26049181,2621.3,2621.2,0.3816]
[1729154588628,4.87891181,2621.3,2621.2,0.3816]
[1729154589126,1.89376793,2621.3,2621.2,0.3816]
[1729154590428,4.87891181,2621.3,2621.2,0.3816]
[1729154592023,4.22514388,2621.3,2621.2,0.3816]
[1729154592827,1.121,2621.4,2621.1,1.0958]
[1729154592828,4.22514388,2621.4,2621.1,1.0958]
[1729154593034,4.22514388,2621.4,2621.3,0.38158]
[1729154593629,1.24,2621.4,2621.3,0.38158]
[1729154594423,4.55491693,2621.5,2621.1,3.28982]
[1729154594424,4.55491693,2621.5,2621.4,0.38157]
[1729154594626,1.7638,2621.5,2621.4,0.38157]
[1729154594837,4.74904998,2621.5,2621.4,0.38157]
[1729154598933,5.40316933,2621.5,2621.4,0.38157]
[1729154600527,2.41791935,2621.5,2621.4,0.38157]
[1729154601432,0.65411935,2621.5,2621.4,1.62157]
[1729154601637,1.89406382,2621.6,2621.5,0.38155]
[1729154602031,1.89406382,2621.6,2621.5,0.95355]
[1729154602431,1.24,2621.6,2621.5,0.95355]
[1729154602938,1.89406382,2621.6,2621.5,0.95355]
[1729154606124,1.24,2621.6,2621.5,0.95355]
[1729154608742,1.24,2621.6,2621.5,1.48555]
[1729154615148,4.22524998,2621.7,2621.5,2.344]
[1729154615453,1.24,2621.7,2621.6,0.38154]
[1729154617355,1.24,2621.7,2621.5,1.104]
[1729154617356,1.24,2621.7,2621.5,0.572]
[1729154617545,1.62154,2621.6,2621.5,0.38155]
[1729154617846,4.22524998,2621.6,2621.5,0.38155]
[1729154618049,5.26036998,2621.6,2621.5,0.38155]
[1729154618251,5.26036998,2621.6,2621.4,0.38155]
[1729154618445,3.00308,2621.5,2621.4,0.38155]
[1729154622051,2.3495,2621.5,2621.4,0.38155]
[1729154623744,5.33474998,2621.5,2621.4,0.38155]
[1729154626640,5.33474998,2621.5,2621.2,0.5297]
[1729154626854,1.24,2621.3,2621.2,0.3816]
[1729154627041,4.22524998,2621.3,2621.2,0.3816]
[1729154627351,5.39151638,2621.3,2621.2,0.3816]
[1729154628154,4.73781693,2621.3,2621.2,0.3816]
[1729154629054,5.39161743,2621.3,2621.2,0.3816]
[1729154629351,4.73781693,2621.3,2621.2,0.3816]
[1729154630865,4.22332141,2621.3,2621.2,0.3816]
[1729154632147,1.24,2621.3,2621.2,0.3816]
[1729154632656,1.1095,2621.5,2621.4,0.38157]
[1729154633158,2.3495,2621.5,2621.4,0.38157]
[1729154633450,2.3495,2621.5,2621.4,0.89877]
[1729154640758,2.98332141,2621.6,2621.5,0.38155]
[1729154640963,4.74602141,2621.7,2621.6,0.38154]
[1729154645767,1.7627,2621.7,2621.6,0.38154]
[1729154646662,4.02641693,2621.8,2621.7,0.38152]
[1729154646864,0.5286,2621.8,2621.7,1.62152]
[1729154647062,0.5286,2621.8,2621.7,2.14032]
[1729154647264,0.5521,2621.9,2621.8,0.38151]
[1729154647469,0.5521,2621.9,2621.8,1.62151]
[1729154647660,4.22487939,2622.0,2621.8,1.24]
[1729154647858,4.07237939,2622.1,2622.0,0.38148]
[1729154648060,4.07237939,2622.1,2622.0,1.62148]
[1729154649064,4.07237939,2622.1,2622.0,2.14028]
[1729154650461,1.0875,2622.1,2622.0,2.14028]
[1729154653167,3.51967939,2622.2,2622.0,2.14028]
[1729154653168,2.98487939,2622.2,2622.1,0.38146]
[1729154653364,2.98487939,2622.3,2622.2,0.38145]
[1729154653568,2.98487939,2622.3,2622.2,1.62145]
[1729154653763,2.3191,2622.4,2622.3,0.38143]
[1729154654271,0.5351,2622.4,2622.3,1.62143]
[1729154654464,2.48495036,2622.4,2622.3,1.62143]
[1729154654767,2.48495036,2622.5,2622.3,1.24]
[1729154655068,2.48495036,2622.5,2622.4,2.18572]
[1729154655369,1.0683,2622.6,2622.4,1.8043]
[1729154655577,2.483664,2622.5,2622.4,2.18572]
[1729154657071,2.483664,2622.5,2622.4,5.99932]
[1729154657572,3.551964,2622.6,2622.5,0.38141]
[1729154660576,1.0683,2622.6,2622.5,1.62141]
[1729154662466,2.3083,2622.6,2622.5,1.62141]
[1729154663166,2.3083,2622.6,2622.5,0.38141]
[1729154668282,2.6897,2622.6,2622.4,0.38141]
[1729154668483,1.24,2622.4,2622.3,1.62143]
[1729154668884,1.24,2622.4,2622.0,0.5135]
[1729154668885,0.38145,2622.2,2622.0,0.38147]
[1729154669189,5.22959,2622.6,2621.9,4.4478]
[1729154669190,2.3279,2622.1,2621.9,4.4478]
[1729154669479,3.01480835,2622.0,2621.9,4.82928]
[1729154670689,3.01497715,2622.0,2621.9,4.82928]
[1729154671075,0.5376,2622.0,2621.9,1.62148]
[1729154671278,1.7776,2622.0,2621.9,1.62148]
[1729154674975,0.5376,2622.0,2621.9,1.62148]
[1729154686187,1.0879,2622.1,2622.0,0.38148]
[1729154686388,1.0879,2622.1,2622.0,2.18358]
[1729154688602,2.98487939,2622.2,2622.0,1.8021]
[1729154688890,2.98487939,2622.3,2622.2,0.38145]
[1729154689287,4.22487939,2622.3,2622.2,0.94575]
[1729154691195,1.24,2622.3,2622.2,0.94575]
[1729154695894,3.51477939,2622.4,2622.2,1.8043]
[1729154696087,2.98487939,2622.4,2622.3,1.62143]
[1729154696285,4.74837939,2622.5,2622.4,0.38142]
[1729154696485,1.7635,2622.5,2622.4,0.89872]
[1729154699196,5.74193904,2622.5,2622.4,0.89872]
[1729154699498,4.53443904,2622.6,2622.5,0.38141]
[1729154699899,4.53443904,2622.6,2622.5,0.93621]
[1729154700394,3.97843904,2622.6,2622.5,2.17621]
[1729154701885,3.97843904,2622.6,2622.5,0.93621]
[1729154701886,5.21843904,2622.6,2622.5,0.93621]
[1729154704392,5.21843904,2622.6,2622.5,0.38141]
[1729154705994,3.97843904,2622.6,2622.5,0.38141]
[1729154706191,4.22034366,2622.7,2622.6,0.38139]
[1729154706705,4.22034366,2622.7,2622.6,0.92169]
[1729154706891,1.24,2622.7,2622.6,0.92169]
[1729154710305,4.44100366,2622.8,2622.7,0.38138]
[1729154710306,1.0793,2622.8,2622.7,0.38138]
[1729154712500,2.3193,2622.8,2622.7,0.38138]
[1729154713389,6.29340233,2622.8,2622.7,0.38138]
[1729154713592,5.05340233,2622.8,2622.7,0.38138]
[1729154717001,5.05340233,2622.8,2622.7,1.62138]
[1729154717301,3.97410233,2622.9,2622.7,1.24]
[1729154717596,3.97410233,2622.9,2622.8,9.20356]
[1729154717597,2.98000507,2622.9,2622.8,9.20356]
[1729154717799,2.98000507,2622.9,2622.8,5.39076]
[1729154717994,2.98000507,2623.0,2622.8,8.8222]
[1729154718197,2.98000507,2623.0,2622.9,2.15045]
[1729154718393,2.98000507,2623.0,2622.9,6.49575]
[1729154719904,3.47655176,2623.0,2622.9,1.7725]
[1729154720096,4.03670209,2623.0,2622.9,2.15385]
[1729154720294,5.27670209,2623.0,2622.9,0.38135]
[1729154720501,4.03670209,2623.0,2622.9,0.38135]
[1729154720701,4.03670209,2623.0,2622.9,1.62135]
[1729154721198,0.5617,2623.0,2622.9,1.62135]
[1729154721507,8.1808488,2623.5,2622.9,1.62135]
[1729154721508,2.4819996,2623.5,2622.9,10.5356]
[1729154721706,2.4819996,2623.6,2623.5,0.38126]
[1729154722003,4.1076996,2623.7,2623.5,0.38126]
[1729154722204,2.4819996,2623.6,2623.3,3.2078]
[1729154722505,3.7219996,2623.6,2623.4,1.62127]
[1729154723003,3.7219996,2623.6,2623.4,1.24]
[1729154723198,3.7219996,2623.6,2623.4,1.62126]
[1729154723399,1.98363469,2623.5,2623.4,1.62126]
[1729154724291,1.98363469,2623.5,2623.4,2.13526]
[1729154724495,1.98363469,2623.6,2623.5,0.38126]
[1729154724694,1.98363469,2623.6,2623.5,1.62126]
[1729154725205,4.1076996,2623.7,2623.6,0.38125]
[1729154725206,3.60933469,2623.7,2623.6,0.38125]
[1729154725407,3.60933469,2623.7,2623.6,1.62125]
[1729154726502,1.6257,2623.7,2623.6,1.62125]
[1729154727400,3.60933469,2623.7,2623.6,1.62125]
[1729154727600,1.6257,2623.7,2623.6,1.62125]
[1729154728207,3.60933469,2623.7,2623.6,1.62125]
[1729154728606,4.84933469,2623.7,2623.4,0.514]
[1729154728802,3.22363469,2623.6,2623.5,0.38126]
[1729154729106,1.98363469,2623.6,2623.5,1.62126]
[1729154729505,5.23057469,2623.7,2623.5,1.62126]
[1729154729807,4.84933469,2623.7,2623.5,1.24]
[1729154730001,5.23057469,2623.7,2623.5,1.62125]
[1729154730203,4.84933469,2623.7,2623.6,0.38125]
[1729154730402,3.60933469,2623.7,2623.6,1.62125]
[1729154730609,3.60933469,2623.7,2623.6,1.24]
[1729154730805,3.60933469,2623.7,2623.6,1.62125]
[1729154733106,3.99056469,2623.7,2623.6,1.62125]
[1729154733406,3.60933469,2623.7,2623.6,0.38125]
[1729154734612,3.60933469,2623.7,2623.6,1.62125]
[1729154735923,3.99056469,2623.7,2623.6,1.62125]
[1729154736107,3.60933469,2623.7,2623.6,1.62125]
[1729154736612,1.6257,2623.7,2623.6,1.62125]
[1729154739613,2.47592651,2623.7,2623.6,1.62125]
[1729154740301,2.47592651,2623.7,2623.6,2.13625]
[1729154741317,1.98104059,2623.7,2623.6,2.13625]
[1729154743613,0.5228,2623.9,2623.8,0.38122]
[1729154743811,0.5228,2623.9,2623.8,1.62122]
[1729154747226,4.3083,2624.0,2623.9,0.3812]
[1729154747516,4.8628,2624.0,2623.9,1.6212]
[1729154747818,3.2078,2624.0,2623.9,1.6212]
[1729154748513,2.54614059,2624.1,2623.9,1.24]
[1729154748714,0.5651,2624.1,2624.0,1.62119]
[1729154750519,1.98104059,2624.3,2624.0,6.2912]
[1729154750720,2.50704059,2624.4,2624.3,0.38114]
[1729154750921,1.98104059,2624.4,2624.3,1.62114]
[1729154751122,1.98104059,2624.5,2624.4,0.38113]
[1729154751313,1.98104059,2624.5,2624.4,1.62113]
[1729154751724,2.52174059,2624.6,2624.5,0.38112]
[1729154752020,2.52174059,2624.6,2624.5,1.62112]
[1729154752438,0.5407,2624.6,2624.5,1.62112]
[1729154754419,1.0718,2624.7,2624.6,0.3811]
[1729154754725,1.0718,2624.7,2624.6,2.162]
[1729154754726,0.5427,2624.7,2624.6,2.162]
[1729154756224,2.91830059,2624.9,2624.7,0.38109]
[1729154756420,0.92597,2624.8,2624.7,0.5443]
[1729154756624,0.92597,2624.8,2624.7,2.16539]
[1729154758419,0.5449,2624.8,2624.7,2.16539]
[1729154758614,3.90436953,2624.8,2624.7,2.16539]
[1729154760517,0.92597,2624.8,2624.7,1.62109]
[1729154760722,2.16597,2624.8,2624.7,1.62109]
[1729154761427,2.16597,2624.8,2624.7,0.38109]
[1729154761622,1.7849,2624.8,2624.7,0.38109]
[1729154761821,2.16597,2624.8,2624.7,1.62109]
[1729154762425,5.64097209,2624.8,2624.7,1.24]
[1729154762624,0.3811,2624.7,2624.6,0.3811]
[1729154762821,3.85610209,2624.7,2624.6,0.3811]
[1729154763430,3.47500209,2624.7,2624.6,1.6211]
[1729154763730,3.85609209,2624.7,2624.6,1.6211]
[1729154763929,3.85609209,2624.7,2624.6,1.24]
[1729154764133,3.85609209,2624.7,2624.6,1.6211]
[1729154765028,3.85609209,2624.7,2624.6,1.24]
[1729154765721,3.85609209,2624.7,2624.6,1.6211]
[1729154766121,3.85609209,2624.7,2624.6,1.24]
[1729154766632,5.25990209,2624.8,2624.6,1.6211]
[1729154766824,2.97353317,2624.7,2624.6,0.3811]
[1729154767134,2.97353317,2624.7,2624.6,1.6211]
[1729154770731,2.97353317,2624.7,2624.6,4.8289]
[1729154770928,0.5562,2624.9,2624.6,8.2582]
[1729154771135,4.03673317,2625.0,2624.9,0.38106]
[1729154771330,1.0632,2625.0,2624.9,1.62106]
[1729154771530,1.0632,2625.0,2624.9,0.38106]
[1729154771835,6.44853526,2625.1,2625.0,0.38104]
[1729154772035,3.47500209,2625.1,2625.0,1.62104]
[1729154772235,0.5445,2625.2,2625.1,0.38103]
[1729154772434,0.5445,2625.2,2625.1,1.62103]
[1729154773540,2.16552,2625.2,2625.0,0.89654]
[1729154773742,0.5445,2625.2,2625.0,2.13654]
[1729154773942,0.5445,2625.2,2625.1,1.24]
[1729154775046,0.5445,2625.2,2625.1,1.62103]
[1729154775342,0.5445,2625.2,2625.1,1.24]
[1729154775744,0.5445,2625.2,2625.1,1.62103]
[1729154776047,0.92551,2625.2,2625.1,1.24]
[1729154776241,0.92551,2625.2,2625.1,0.38103]
[1729154777333,0.5445,2625.2,2625.0,1.7555]
[1729154777538,0.92552,2625.2,2625.1,0.38103]
[1729154778248,0.5445,2625.2,2625.1,1.62103]
[1729154778437,0.5294,2625.4,2625.1,1.24]
[1729154778643,1.44929,2625.4,2625.2,1.621]
[1729154778839,1.0683,2625.4,2625.3,1.24]
[1729154779137,1.4493,2625.4,2625.3,1.24]
[1729154779440,1.44928,2625.4,2625.3,1.621]
[1729154780843,2.3083,2625.4,2625.1,2.32]
[1729154781039,2.3083,2625.4,2625.2,0.381]
[1729154781040,0.38101,2625.3,2625.2,0.381]
[1729154781239,0.38101,2625.3,2625.2,1.621]
[1729154781945,1.4493,2625.4,2625.3,0.381]
[1729154782451,1.4493,2625.4,2625.3,1.621]
[1729154784440,1.0683,2625.4,2625.3,1.621]
[1729154784849,2.97182336,2625.7,2625.3,1.24]
[1729154785042,3.50532336,2625.7,2625.6,1.62096]
[1729154786345,3.88626336,2625.7,2625.6,1.62096]
[1729154786547,3.50532336,2625.7,2625.6,1.62096]
[1729154786935,3.88626336,2625.7,2625.6,1.62096]
[1729154787147,3.50532336,2625.7,2625.6,1.62096]
[1729154788235,3.88626336,2625.7,2625.6,1.62096]
[1729154788655,3.39108665,2625.7,2625.6,1.62096]
[1729154788840,5.37217504,2625.7,2625.6,1.24]
[1729154789150,5.37217504,2625.7,2625.6,1.62096]
[1729154790334,0.91444,2625.7,2625.6,1.62096]
[1729154790538,5.37217504,2625.7,2625.6,1.62096]
[1729154790942,5.37217504,2625.7,2625.6,1.24]
[1729154791149,0.38096,2625.6,2625.5,2.17136]
[1729154791542,0.38096,2625.6,2625.5,2.17137]
[1729154792047,4.99123504,2625.7,2625.5,1.7904]
[1729154792243,7.17011894,2625.6,2625.5,2.17136]
[1729154792549,0.38104,2625.1,2624.9,1.62105]
[1729154792749,0.5555,2625.0,2624.9,1.62106]
[1729154793048,5.01304207,2625.0,2624.9,1.62106]
[1729154793244,7.66534207,2625.1,2625.0,0.38104]
[1729154793446,7.66534207,2625.1,2625.0,2.17794]
[1729154795239,9.28637207,2625.1,2624.9,0.38106]
[1729154795441,5.39573,2625.1,2624.9,0.38106]
[1729154795642,4.46114553,2625.0,2624.9,1.62106]
[1729154795854,10.34855452,2625.1,2624.9,1.62106]
[1729154796247,0.38104,2625.0,2624.9,1.24]
[1729154796447,10.34856452,2625.1,2624.9,1.24]
[1729154796644,10.34856452,2625.1,2624.9,1.62106]
[1729154796846,2.4789503,2625.0,2624.9,1.62106]
[1729154803754,3.96632048,2625.1,2624.9,1.24]
[1729154803958,3.96632048,2625.1,2625.0,0.38104]
[1729154804157,3.96632048,2625.1,2625.0,0.93074]
[1729154805467,3.96632048,2625.1,2625.0,2.72124]
[1729154809280,3.96632048,2625.1,2625.0,1.48124]
[1729154809868,3.96632048,2625.1,2625.0,2.72124]
[1729154810953,3.7423,2625.2,2625.0,2.3402]
[1729154811259,3.7423,2625.2,2625.1,0.38103]
[1729154811464,4.12331,2625.2,2625.1,0.38103]
[1729154812481,3.7423,2625.2,2625.1,0.38103]
[1729154814472,3.7423,2625.2,2625.1,1.62103]
[1729154816160,3.7423,2625.2,2625.0,1.1002]
[1729154816161,1.7745,2625.2,2624.8,0.5138]
[1729154816357,1.7745,2625.2,2624.5,3.2078]
[1729154816358,1.62104,2625.1,2624.9,1.62105]
[1729154816558,0.5528,2625.0,2624.9,1.62106]
[1729154820666,0.5528,2625.0,2624.9,1.24]
[1729154820970,0.38106,2624.9,2624.7,0.38107]
[1729154821269,0.38109,2624.7,2624.5,4.8289]
[1729154821466,1.0946,2624.6,2624.5,4.8289]
[1729154822971,1.0946,2624.6,2624.5,4.82892]
[1729154825077,2.7157,2624.6,2624.5,3.2078]
[1729154825381,2.4646,2624.6,2624.4,1.75113]
[1729154825583,0.90952,2624.5,2624.4,1.37]
[1729154825872,4.87879427,2624.5,2624.2,0.38115]
[1729154826084,0.38114,2624.3,2624.2,1.37]
[1729154826268,3.47316796,2624.3,2624.2,1.75116]
[1729154826468,2.28144,2624.3,2624.1,1.75116]
[1729154826664,4.01146076,2624.2,2624.1,1.75116]
[1729154827774,0.5383,2624.2,2624.1,1.75116]
[1729154827979,3.51455438,2624.2,2624.1,1.75116]
[1729154828570,2.97625438,2624.2,2624.1,1.75116]
[1729154828972,0.5303,2624.3,2624.2,0.38116]
[1729154828973,3.50655438,2624.3,2624.2,0.38116]
[1729154829173,3.50655438,2624.3,2624.2,1.75116]
[1729154829382,3.50655438,2624.3,2624.2,5.56156]
[1729154829383,2.97625438,2624.3,2624.2,5.56156]
[1729154829987,2.97625438,2624.3,2624.2,1.75116]
[1729154830480,2.97625438,2624.3,2624.1,1.37]
[1729154830785,5.41136076,2624.4,2624.1,1.37]
[1729154830786,4.00016076,2624.2,2624.1,1.37]
[1729154831180,4.38132076,2624.2,2624.1,1.37]
[1729154831682,4.38132076,2624.2,2623.9,3.7345]
[1729154831683,0.38118,2624.1,2624.0,1.37]
[1729154831878,0.91238,2624.1,2624.0,1.37]
[1729154832076,0.91238,2624.1,2624.0,1.75119]
[1729154832077,0.5312,2624.1,2624.0,1.75119]
[1729154832586,3.50495731,2624.1,2624.0,1.75119]
[1729154832776,0.5312,2624.1,2624.0,1.75119]
[1729154833175,3.50389645,2624.1,2624.0,1.75119]
[1729154833784,2.97269645,2624.1,2624.0,5.56239]
[1729154834084,1.98197429,2624.4,2624.3,0.38114]
[1729154834285,1.98197429,2624.4,2624.3,1.75114]
[1729154834776,1.98197429,2624.5,2624.4,0.38113]
[1729154835079,1.98197429,2624.5,2624.4,2.27933]
[1729154836282,7.29776786,2624.6,2624.4,1.8982]
[1729154836487,7.29776786,2624.6,2624.5,0.38112]
[1729154836787,4.08996786,2624.6,2624.5,0.38112]
[1729154837687,1.6125,2624.6,2624.5,0.38112]
[1729154838276,2.9825,2624.6,2624.2,0.5409]
[1729154838589,2.9825,2624.6,2624.5,0.38112]
[1729154838590,3.36361,2624.6,2624.5,0.38112]
[1729154839376,2.9825,2624.6,2624.5,0.38112]
[1729154839792,3.3636,2624.6,2624.5,0.38112]
[1729154840293,3.3636,2624.6,2624.5,1.75112]
[1729154840488,3.3636,2624.6,2624.5,0.38112]
[1729154841291,2.9825,2624.6,2624.5,0.38112]
[1729154841485,1.6125,2624.6,2624.5,1.75112]
[1729154841683,5.08317995,2624.6,2624.5,1.75112]
[1729154843993,5.46427995,2624.6,2624.5,1.75112]
[1729154845093,5.08317995,2624.6,2624.5,1.75112]
[1729154845885,5.46427995,2624.6,2624.5,1.75112]
[1729154846285,5.08317995,2624.6,2624.5,1.75112]
[1729154847591,5.46427995,2624.6,2624.5,1.75112]
[1729154848691,5.08317995,2624.6,2624.5,1.75112]
[1729154848893,4.55197995,2624.6,2624.5,1.75112]
[1729154849097,1.0813,2624.6,2624.5,1.75112]
[1729154850296,1.0813,2624.6,2624.5,0.38112]
[1729154850297,1.4624,2624.6,2624.5,0.38112]
[1729154850594,1.4624,2624.6,2624.3,0.5387]
[1729154850595,0.38112,2624.5,2624.4,0.38112]
[1729154850788,1.37,2624.5,2624.2,1.37]
[1729154850988,0.38114,2624.4,2624.3,0.38113]
[1729154852101,0.38112,2624.5,2624.3,1.37]
[1729154852401,4.43718353,2624.6,2624.5,0.38112]
[1729154852699,0.38112,2624.5,2624.4,1.75112]
[1729154853304,0.38112,2624.5,2624.4,2.30692]
[1729154854692,4.05607353,2624.6,2624.4,1.9258]
[1729154854693,1.0813,2624.6,2624.4,1.9258]
[1729154854999,1.46241,2624.6,2624.5,0.38112]
[1729154855190,5.80718353,2624.6,2624.5,0.38112]
[1729154855693,5.80718353,2624.6,2624.3,1.37]
[1729154855694,5.42607353,2624.6,2624.3,1.37]
[1729154855995,0.38113,2624.5,2624.4,0.38112]
[1729154856195,1.75113,2624.5,2624.4,0.38113]
[1729154856593,6.21324055,2624.5,2624.4,0.38113]
[1729154856994,9.03991055,2624.5,2624.0,3.2078]